[Event "Titled Tuesday Blitz March 14 Late 2023"]
[White "Chigaev, Maksim"]
[Black "Petukhov, Dmitry"]
[WhiteFideId "4108116"]
[BlackFideId "4142748"]
[WhiteElo "2547"]
[BlackElo "2311"]
[Result "1-0"]
[Round "03"]
[TimeControl "180+1"]
[Date "2023.03.14"]
[WhiteClock "0:00:32"]
[BlackClock "0:00:09"]

1. Nf3 {[%clk 0:02:56]}  Nf6 {[%clk 0:03:00]} 2. g3 {[%clk 0:02:56]}  g6 {[%clk 0:02:57]} 3. b3 {[%clk 0:02:56]}  Bg7 {[%clk 0:02:57]} 4. Bb2 {[%clk 0:02:57]}  O-O {[%clk 0:02:50]} 5. c4 {[%clk 0:02:56]}  d5 {[%clk 0:02:38]} 6. Bg2 {[%clk 0:02:54]}  dxc4 {[%clk 0:02:38]} 7. bxc4 {[%clk 0:02:54]}  Nc6 {[%clk 0:02:38]} 8. O-O {[%clk 0:02:52]}  Bg4 {[%clk 0:02:34]} 9. d3 {[%clk 0:02:49]}  Qc8 {[%clk 0:02:33]} 10. Nbd2 {[%clk 0:02:47]}  Bh3 {[%clk 0:02:32]} 11. Rb1 {[%clk 0:02:48]}  Bxg2 {[%clk 0:02:21]} 12. Kxg2 {[%clk 0:02:47]}  b6 {[%clk 0:02:21]} 13. Qa4 {[%clk 0:02:35]}  Qb7 {[%clk 0:02:16]} 14. Kg1 {[%clk 0:02:24]}  Rad8 {[%clk 0:02:11]} 15. Ba1 {[%clk 0:02:25]}  Nd7 {[%clk 0:01:58]} 16. Bxg7 {[%clk 0:02:21]}  Kxg7 {[%clk 0:01:59]} 17. d4 {[%clk 0:02:21]}  e5 {[%clk 0:01:53]} 18. d5 {[%clk 0:02:06]}  Nd4 {[%clk 0:01:21]} 19. Nxd4 {[%clk 0:02:04]}  exd4 {[%clk 0:01:22]} 20. Nb3 {[%clk 0:02:03]}  b5 {[%clk 0:01:14]} 21. Nxd4 {[%clk 0:01:52]}  a6 {[%clk 0:00:55]} 22. Qb3 {[%clk 0:01:21]}  Nb6 {[%clk 0:00:47]} 23. Qc3 {[%clk 0:01:13]}  Kg8 {[%clk 0:00:43]} 24. e4 {[%clk 0:01:04]}  bxc4 {[%clk 0:00:40]} 25. Nc6 {[%clk 0:00:49]}  Rde8 {[%clk 0:00:32]} 26. Rfe1 {[%clk 0:00:38]}  Qc8 {[%clk 0:00:29]} 27. Kg2 {[%clk 0:00:38]}  Qg4 {[%clk 0:00:23]} 28. f3 {[%clk 0:00:37]}  Qg5 {[%clk 0:00:24]} 29. h4 {[%clk 0:00:36]}  Qh6 {[%clk 0:00:24]} 30. Rbd1 {[%clk 0:00:33]}  Qg7 {[%clk 0:00:19]} 31. e5 {[%clk 0:00:32]}  Qh6 {[%clk 0:00:09]} 1-0


[Site "https://www.chess.com"]

[Event "Titled Tuesday Blitz March 14 Late 2023"]
[White "Chor, Kevin"]
[Black "Szyszylo, Rafal"]
[WhiteFideId "2090740"]
[BlackFideId "1109626"]
[WhiteElo "2615"]
[BlackElo "1951"]
[Result "1-0"]
[Round "03"]
[TimeControl "180+1"]
[Date "2023.03.14"]
[WhiteClock "0:00:17"]
[BlackClock "0:00:07"]

1. Nf3 {[%clk 0:03:00]}  g6 {[%clk 0:02:58]} 2. d4 {[%clk 0:03:00]}  Bg7 {[%clk 0:02:56]} 3. e4 {[%clk 0:02:53]}  d6 {[%clk 0:02:55]} 4. Bd3 {[%clk 0:02:43]}  Nf6 {[%clk 0:02:54]} 5. O-O {[%clk 0:02:43]}  Bg4 {[%clk 0:02:54]} 6. Nbd2 {[%clk 0:02:38]}  Nc6 {[%clk 0:02:53]} 7. h3 {[%clk 0:02:37]}  Bxf3 {[%clk 0:02:53]} 8. Nxf3 {[%clk 0:02:38]}  e5 {[%clk 0:02:53]} 9. c3 {[%clk 0:02:20]}  O-O {[%clk 0:02:52]} 10. Re1 {[%clk 0:02:19]}  h6 {[%clk 0:02:46]} 11. Bc2 {[%clk 0:01:56]}  Re8 {[%clk 0:02:39]} 12. b3 {[%clk 0:01:43]}  a6 {[%clk 0:02:24]} 13. Bb2 {[%clk 0:01:42]}  exd4 {[%clk 0:02:21]} 14. cxd4 {[%clk 0:01:41]}  Re7 {[%clk 0:01:17]} 15. Qd2 {[%clk 0:01:17]}  Qe8 {[%clk 0:01:15]} 16. Qf4 {[%clk 0:00:49]}  Nb4 {[%clk 0:01:10]} 17. Bb1 {[%clk 0:00:48]}  Rd8 {[%clk 0:01:07]} 18. a3 {[%clk 0:00:47]}  Nc6 {[%clk 0:01:07]} 19. Bc2 {[%clk 0:00:47]}  Nh5 {[%clk 0:01:04]} 20. Qg4 {[%clk 0:00:44]}  Nf6 {[%clk 0:01:04]} 21. Qf4 {[%clk 0:00:42]}  Nh5 {[%clk 0:01:04]} 22. Qd2 {[%clk 0:00:39]}  Nf6 {[%clk 0:01:04]} 23. Qd3 {[%clk 0:00:38]}  Nh5 {[%clk 0:00:50]} 24. b4 {[%clk 0:00:32]}  Nf4 {[%clk 0:00:46]} 25. Qb3 {[%clk 0:00:31]}  Ne6 {[%clk 0:00:20]} 26. Rad1 {[%clk 0:00:24]}  Ng5 {[%clk 0:00:20]} 27. Nxg5 {[%clk 0:00:15]}  hxg5 {[%clk 0:00:21]} 28. Qg3 {[%clk 0:00:14]}  Bf6 {[%clk 0:00:19]} 29. f4 {[%clk 0:00:10]}  gxf4 {[%clk 0:00:18]} 30. Qxf4 {[%clk 0:00:11]}  Bg7 {[%clk 0:00:18]} 31. Rf1 {[%clk 0:00:10]}  Rdd7 {[%clk 0:00:17]} 32. Rde1 {[%clk 0:00:08]}  Nd8 {[%clk 0:00:14]} 33. Bb3 {[%clk 0:00:08]}  Ne6 {[%clk 0:00:13]} 34. Qf2 {[%clk 0:00:08]}  c6 {[%clk 0:00:12]} 35. d5 {[%clk 0:00:08]}  cxd5 {[%clk 0:00:11]} 36. Bxg7 {[%clk 0:00:08]}  Nxg7 {[%clk 0:00:10]} 37. Bxd5 {[%clk 0:00:09]}  Ne6 {[%clk 0:00:09]} 38. Qf6 {[%clk 0:00:09]}  Rc7 {[%clk 0:00:09]} 39. Re3 {[%clk 0:00:07]}  Qf8 {[%clk 0:00:08]} 40. Rg3 {[%clk 0:00:06]}  Qg7 {[%clk 0:00:08]} 41. Qf2 {[%clk 0:00:05]}  Qd4 {[%clk 0:00:07]} 42. Qxd4 {[%clk 0:00:04]}  Nxd4 {[%clk 0:00:08]} 43. Rxg6+ {[%clk 0:00:04]}  Kf8 {[%clk 0:00:08]} 44. Rxd6 {[%clk 0:00:05]}  Nc6 {[%clk 0:00:06]} 45. h4 {[%clk 0:00:04]}  Rcd7 {[%clk 0:00:04]} 46. Rh6 {[%clk 0:00:04]}  Re5 {[%clk 0:00:04]} 47. Rh8+ {[%clk 0:00:03]}  Ke7 {[%clk 0:00:04]} 48. Rxf7+ {[%clk 0:00:02]}  Kd6 {[%clk 0:00:04]} 49. Rxd7+ {[%clk 0:00:03]}  Kxd7 {[%clk 0:00:04]} 50. Rh7+ {[%clk 0:00:04]}  Kc8 {[%clk 0:00:03]} 51. h5 {[%clk 0:00:05]}  Ne7 {[%clk 0:00:03]} 52. h6 {[%clk 0:00:04]}  Nxd5 {[%clk 0:00:03]} 53. exd5 {[%clk 0:00:05]}  Rxd5 {[%clk 0:00:04]} 54. Rg7 {[%clk 0:00:06]}  Rh5 {[%clk 0:00:04]} 55. h7 {[%clk 0:00:06]}  Kb8 {[%clk 0:00:05]} 56. Rg8+ {[%clk 0:00:06]}  Ka7 {[%clk 0:00:06]} 57. h8=Q {[%clk 0:00:07]}  Rxh8 {[%clk 0:00:05]} 58. Rxh8 {[%clk 0:00:08]}  b6 {[%clk 0:00:05]} 59. Rh5 {[%clk 0:00:09]}  b5 {[%clk 0:00:05]} 60. Rf5 {[%clk 0:00:09]}  Kb6 {[%clk 0:00:05]} 61. g4 {[%clk 0:00:10]}  Kc6 {[%clk 0:00:06]} 62. Rf6+ {[%clk 0:00:11]}  Kb7 {[%clk 0:00:05]} 63. g5 {[%clk 0:00:11]}  a5 {[%clk 0:00:05]} 64. bxa5 {[%clk 0:00:12]}  b4 {[%clk 0:00:05]} 65. axb4 {[%clk 0:00:13]}  Ka7 {[%clk 0:00:05]} 66. g6 {[%clk 0:00:14]}  Kb7 {[%clk 0:00:06]} 67. g7 {[%clk 0:00:14]}  Kc7 {[%clk 0:00:07]} 68. g8=Q {[%clk 0:00:15]}  Kd7 {[%clk 0:00:07]} 69. Qg7+ {[%clk 0:00:16]}  Ke8 {[%clk 0:00:07]} 70. Rf8# {[%clk 0:00:17]} 1-0


[Site "https://www.chess.com"]

[Event "Titled Tuesday Blitz March 14 Late 2023"]
[White "Cramling Bellon, Anna"]
[Black "Fule, Simon"]
[WhiteFideId "32009232"]
[BlackFideId "787515"]
[WhiteElo "1972"]
[BlackElo "2391"]
[Result "0-1"]
[Round "03"]
[TimeControl "180+1"]
[Date "2023.03.14"]
[WhiteClock "0:00:02"]
[BlackClock "0:00:06"]

1. d4 {[%clk 0:02:51]}  Nf6 {[%clk 0:02:59]} 2. c4 {[%clk 0:02:51]}  d6 {[%clk 0:02:59]} 3. Nc3 {[%clk 0:02:46]}  g6 {[%clk 0:02:59]} 4. e4 {[%clk 0:02:45]}  Bg7 {[%clk 0:02:59]} 5. h3 {[%clk 0:02:45]}  O-O {[%clk 0:02:58]} 6. Nf3 {[%clk 0:02:45]}  Nbd7 {[%clk 0:02:59]} 7. Bg5 {[%clk 0:02:44]}  h6 {[%clk 0:02:58]} 8. Be3 {[%clk 0:02:44]}  e5 {[%clk 0:02:55]} 9. d5 {[%clk 0:02:44]}  Nc5 {[%clk 0:02:53]} 10. Qc2 {[%clk 0:02:43]}  a5 {[%clk 0:02:47]} 11. Be2 {[%clk 0:02:42]}  b6 {[%clk 0:02:43]} 12. g4 {[%clk 0:02:40]}  Bd7 {[%clk 0:02:34]} 13. O-O-O {[%clk 0:02:39]}  a4 {[%clk 0:02:21]} 14. g5 {[%clk 0:02:33]}  hxg5 {[%clk 0:02:11]} 15. Nxg5 {[%clk 0:02:34]}  Qe7 {[%clk 0:02:06]} 16. h4 {[%clk 0:02:34]}  Ng4 {[%clk 0:02:03]} 17. Rdg1 {[%clk 0:02:22]}  f5 {[%clk 0:01:15]} 18. h5 {[%clk 0:02:05]}  Bh6 {[%clk 0:01:01]} 19. Bxg4 {[%clk 0:01:21]}  fxg4 {[%clk 0:01:00]} 20. Qd2 {[%clk 0:01:16]}  a3 {[%clk 0:00:39]} 21. b4 {[%clk 0:01:11]}  Na6 {[%clk 0:00:26]} 22. hxg6 {[%clk 0:01:10]}  Bxg5 {[%clk 0:00:14]} 23. Bxg5 {[%clk 0:01:10]}  Qg7 {[%clk 0:00:15]} 24. Rh7 {[%clk 0:00:53]}  Qxg6 {[%clk 0:00:14]} 25. Rxd7 {[%clk 0:00:53]}  Nxb4 {[%clk 0:00:11]} 26. Rxg4 {[%clk 0:00:51]}  Rxf2 {[%clk 0:00:11]} 27. Qd1 {[%clk 0:00:03]}  Raf8 {[%clk 0:00:06]} 28. Bf6 {[%clk 0:00:02]}  R8xf6 {[%clk 0:00:04]} 29. Rxg6+ {[%clk 0:00:02]}  Rxg6 {[%clk 0:00:05]} 30. Qe1 {[%clk 0:00:01]}  Nd3+ {[%clk 0:00:05]} 31. Kd1 {[%clk 0:00:01]}  Nxe1 {[%clk 0:00:06]} 32. Kxe1 {[%clk 0:00:02]}  Rc2 {[%clk 0:00:06]} 33. Nd1 {[%clk 0:00:02]}  Rxa2 {[%clk 0:00:06]} 34. Rxc7 {[%clk 0:00:02]}  Rg1# {[%clk 0:00:06]} 0-1


[Site "https://www.chess.com"]

[Event "Titled Tuesday Blitz March 14 Late 2023"]
[White "Dahl, Trygve"]
[Black "Yelisieiev, Yevhenii"]
[WhiteFideId "1513427"]
[BlackFideId "14139642"]
[WhiteElo "2125"]
[BlackElo "2447"]
[Result "1-0"]
[Round "03"]
[TimeControl "180+1"]
[Date "2023.03.14"]
[WhiteClock "0:00:46"]
[BlackClock "0:00:03"]

1. c4 {[%clk 0:02:51]}  d6 {[%clk 0:03:00]} 2. Nc3 {[%clk 0:02:50]}  e5 {[%clk 0:03:01]} 3. e4 {[%clk 0:02:50]}  Nf6 {[%clk 0:03:01]} 4. g3 {[%clk 0:02:49]}  Be7 {[%clk 0:03:01]} 5. Bg2 {[%clk 0:02:50]}  O-O {[%clk 0:03:02]} 6. Nge2 {[%clk 0:02:50]}  Nbd7 {[%clk 0:03:02]} 7. O-O {[%clk 0:02:50]}  c6 {[%clk 0:03:02]} 8. d3 {[%clk 0:02:49]}  a5 {[%clk 0:03:00]} 9. h3 {[%clk 0:02:46]}  Rb8 {[%clk 0:02:56]} 10. a4 {[%clk 0:02:44]}  Nc5 {[%clk 0:02:56]} 11. Be3 {[%clk 0:02:43]}  Qb6 {[%clk 0:02:50]} 12. Rb1 {[%clk 0:02:40]}  Qb3 {[%clk 0:02:34]} 13. Qd2 {[%clk 0:02:30]}  Qb4 {[%clk 0:02:09]} 14. b3 {[%clk 0:02:20]}  Rd8 {[%clk 0:01:53]} 15. Qc2 {[%clk 0:02:18]}  d5 {[%clk 0:01:40]} 16. exd5 {[%clk 0:02:03]}  cxd5 {[%clk 0:01:32]} 17. Nb5 {[%clk 0:01:47]}  dxc4 {[%clk 0:01:04]} 18. dxc4 {[%clk 0:01:28]}  g6 {[%clk 0:01:00]} 19. g4 {[%clk 0:01:21]}  Rd3 {[%clk 0:00:45]} 20. Nc1 {[%clk 0:01:00]}  Rxe3 {[%clk 0:00:26]} 21. fxe3 {[%clk 0:00:58]}  Nxg4 {[%clk 0:00:07]} 22. hxg4 {[%clk 0:00:53]}  Bxg4 {[%clk 0:00:03]} 23. Na2 {[%clk 0:00:46]} 1-0


[Site "https://www.chess.com"]

[Event "Titled Tuesday Blitz March 14 Late 2023"]
[White "Davidson, Kevin"]
[Black "Arabidze, Meri"]
[WhiteFideId "2056810"]
[BlackFideId "13604040"]
[WhiteElo "2151"]
[BlackElo "2405"]
[Result "1-0"]
[Round "03"]
[TimeControl "180+1"]
[Date "2023.03.14"]
[WhiteClock "0:00:05"]
[BlackClock "0:00:15"]

1. e4 {[%clk 0:03:00]}  c5 {[%clk 0:02:56]} 2. Nf3 {[%clk 0:03:00]}  e6 {[%clk 0:02:57]} 3. d4 {[%clk 0:03:00]}  cxd4 {[%clk 0:02:58]} 4. Nxd4 {[%clk 0:03:01]}  Nc6 {[%clk 0:02:58]} 5. Nc3 {[%clk 0:03:01]}  a6 {[%clk 0:02:59]} 6. g3 {[%clk 0:03:01]}  Qc7 {[%clk 0:02:57]} 7. Bg2 {[%clk 0:03:01]}  Nf6 {[%clk 0:02:57]} 8. O-O {[%clk 0:03:01]}  Bc5 {[%clk 0:02:58]} 9. Nb3 {[%clk 0:02:59]}  Ba7 {[%clk 0:02:58]} 10. Qe2 {[%clk 0:02:58]}  b5 {[%clk 0:02:56]} 11. Be3 {[%clk 0:02:57]}  Bxe3 {[%clk 0:02:51]} 12. Qxe3 {[%clk 0:02:58]}  O-O {[%clk 0:02:46]} 13. Rad1 {[%clk 0:02:47]}  Ne5 {[%clk 0:02:40]} 14. h3 {[%clk 0:02:14]}  Nc4 {[%clk 0:02:39]} 15. Qc1 {[%clk 0:02:14]}  Bb7 {[%clk 0:02:37]} 16. Rfe1 {[%clk 0:02:09]}  d6 {[%clk 0:02:33]} 17. Nd2 {[%clk 0:02:09]}  Rab8 {[%clk 0:02:18]} 18. Nxc4 {[%clk 0:02:06]}  bxc4 {[%clk 0:02:19]} 19. Rd4 {[%clk 0:01:58]}  e5 {[%clk 0:02:16]} 20. Rd2 {[%clk 0:01:56]}  Rfd8 {[%clk 0:02:16]} 21. Red1 {[%clk 0:01:56]}  Bc6 {[%clk 0:02:07]} 22. Kh2 {[%clk 0:01:36]}  h6 {[%clk 0:02:06]} 23. Re2 {[%clk 0:01:20]}  a5 {[%clk 0:02:00]} 24. f4 {[%clk 0:01:18]}  a4 {[%clk 0:01:55]} 25. fxe5 {[%clk 0:01:07]}  dxe5 {[%clk 0:01:56]} 26. Nd5 {[%clk 0:01:06]}  Bxd5 {[%clk 0:01:53]} 27. exd5 {[%clk 0:01:07]}  c3 {[%clk 0:01:44]} 28. bxc3 {[%clk 0:01:04]}  Qxc3 {[%clk 0:01:45]} 29. Qe3 {[%clk 0:01:00]}  Qc4 {[%clk 0:01:25]} 30. d6 {[%clk 0:00:52]}  Qxa2 {[%clk 0:01:20]} 31. c3 {[%clk 0:00:25]}  Qc4 {[%clk 0:01:17]} 32. Red2 {[%clk 0:00:15]}  a3 {[%clk 0:01:14]} 33. Qxe5 {[%clk 0:00:12]}  a2 {[%clk 0:01:13]} 34. Ra1 {[%clk 0:00:08]}  Rb5 {[%clk 0:00:57]} 35. Qf4 {[%clk 0:00:07]}  Qxc3 {[%clk 0:00:50]} 36. Raxa2 {[%clk 0:00:06]}  Rb4 {[%clk 0:00:50]} 37. Qf2 {[%clk 0:00:04]}  Qc1 {[%clk 0:00:49]} 38. d7 {[%clk 0:00:04]}  Rbb8 {[%clk 0:00:44]} 39. Rac2 {[%clk 0:00:04]}  Qa3 {[%clk 0:00:43]} 40. Bc6 {[%clk 0:00:03]}  h5 {[%clk 0:00:37]} 41. Qd4 {[%clk 0:00:03]}  Rb4 {[%clk 0:00:31]} 42. Qc3 {[%clk 0:00:02]}  Rb3 {[%clk 0:00:31]} 43. Qc5 {[%clk 0:00:02]}  Rxg3 {[%clk 0:00:18]} 44. Qxa3 {[%clk 0:00:02]}  Rxa3 {[%clk 0:00:18]} 45. Re2 {[%clk 0:00:02]}  Nxd7 {[%clk 0:00:16]} 46. Rcd2 {[%clk 0:00:03]}  Ra7 {[%clk 0:00:13]} 47. Re7 {[%clk 0:00:02]}  Kf8 {[%clk 0:00:13]} 48. Rexd7 {[%clk 0:00:03]}  Rdxd7 {[%clk 0:00:13]} 49. Bxd7 {[%clk 0:00:03]}  Rxd7 {[%clk 0:00:13]} 50. Rxd7 {[%clk 0:00:02]}  g5 {[%clk 0:00:13]} 51. Ra7 {[%clk 0:00:03]}  Kg7 {[%clk 0:00:13]} 52. Kg3 {[%clk 0:00:03]}  Kg6 {[%clk 0:00:14]} 53. h4 {[%clk 0:00:03]}  f6 {[%clk 0:00:12]} 54. Ra6 {[%clk 0:00:03]}  Kf5 {[%clk 0:00:12]} 55. Ra5+ {[%clk 0:00:03]}  Kg6 {[%clk 0:00:12]} 56. hxg5 {[%clk 0:00:04]}  fxg5 {[%clk 0:00:13]} 57. Kh3 {[%clk 0:00:04]}  Kf6 {[%clk 0:00:14]} 58. Kg3 {[%clk 0:00:05]}  Kg6 {[%clk 0:00:14]} 59. Kf3 {[%clk 0:00:05]}  Kf6 {[%clk 0:00:14]} 60. Ke4 {[%clk 0:00:05]}  h4 {[%clk 0:00:13]} 61. Ra6+ {[%clk 0:00:05]}  Kg7 {[%clk 0:00:14]} 62. Kf5 {[%clk 0:00:05]}  h3 {[%clk 0:00:14]} 63. Kxg5 {[%clk 0:00:05]}  h2 {[%clk 0:00:15]} 64. Ra1 {[%clk 0:00:05]} 1-0


[Site "https://www.chess.com"]

[Event "Titled Tuesday Blitz March 14 Late 2023"]
[White "Delgado Rosas, Fatima Alexandra"]
[Black "Escalona Landi, Samid Eduardo"]
[WhiteFideId "6603963"]
[BlackFideId "3937437"]
[WhiteElo "2326"]
[BlackElo "2207"]
[Result "0-1"]
[Round "03"]
[TimeControl "180+1"]
[Date "2023.03.14"]
[WhiteClock "0:00:37"]
[BlackClock "0:00:10"]

1. d4 {[%clk 0:03:00]}  Nf6 {[%clk 0:02:58]} 2. c4 {[%clk 0:02:54]}  g6 {[%clk 0:02:58]} 3. Nc3 {[%clk 0:02:54]}  Bg7 {[%clk 0:02:58]} 4. Nf3 {[%clk 0:02:54]}  d6 {[%clk 0:02:58]} 5. e3 {[%clk 0:02:54]}  O-O {[%clk 0:02:59]} 6. Be2 {[%clk 0:02:54]}  Nbd7 {[%clk 0:02:58]} 7. O-O {[%clk 0:02:55]}  e5 {[%clk 0:02:59]} 8. b4 {[%clk 0:02:55]}  e4 {[%clk 0:02:58]} 9. Nd2 {[%clk 0:02:55]}  Re8 {[%clk 0:02:59]} 10. Qc2 {[%clk 0:02:55]}  Qe7 {[%clk 0:03:00]} 11. a4 {[%clk 0:02:55]}  Nf8 {[%clk 0:02:59]} 12. Ba3 {[%clk 0:02:55]}  Bf5 {[%clk 0:02:56]} 13. b5 {[%clk 0:02:55]}  h5 {[%clk 0:02:56]} 14. a5 {[%clk 0:02:55]}  a6 {[%clk 0:02:55]} 15. Rfc1 {[%clk 0:02:55]}  N8h7 {[%clk 0:02:53]} 16. Nd5 {[%clk 0:02:50]}  Nxd5 {[%clk 0:02:48]} 17. cxd5 {[%clk 0:02:51]}  Rec8 {[%clk 0:02:42]} 18. bxa6 {[%clk 0:02:49]}  bxa6 {[%clk 0:02:43]} 19. Rab1 {[%clk 0:02:49]}  Nf6 {[%clk 0:02:37]} 20. Qc4 {[%clk 0:02:46]}  Bd7 {[%clk 0:02:34]} 21. Qa2 {[%clk 0:02:39]}  Ra7 {[%clk 0:02:11]} 22. Rb2 {[%clk 0:02:34]}  h4 {[%clk 0:02:01]} 23. h3 {[%clk 0:02:34]}  g5 {[%clk 0:01:53]} 24. Rbc2 {[%clk 0:02:30]}  g4 {[%clk 0:01:50]} 25. Bf1 {[%clk 0:02:27]}  Bh6 {[%clk 0:01:43]} 26. Qb3 {[%clk 0:01:51]}  gxh3 {[%clk 0:00:51]} 27. gxh3 {[%clk 0:01:51]}  Kh8 {[%clk 0:00:48]} 28. Kh2 {[%clk 0:01:51]}  Nh7 {[%clk 0:00:31]} 29. Nc4 {[%clk 0:01:41]}  Ng5 {[%clk 0:00:23]} 30. Ne5 {[%clk 0:01:37]}  Bf5 {[%clk 0:00:16]} 31. Bg2 {[%clk 0:01:28]}  Qf6 {[%clk 0:00:13]} 32. Nc6 {[%clk 0:01:14]}  Raa8 {[%clk 0:00:12]} 33. Nb4 {[%clk 0:01:12]}  Ra7 {[%clk 0:00:09]} 34. Nc6 {[%clk 0:01:13]}  Raa8 {[%clk 0:00:09]} 35. Nb4 {[%clk 0:01:10]}  Rab8 {[%clk 0:00:08]} 36. Rxc7 {[%clk 0:01:09]}  Rxc7 {[%clk 0:00:09]} 37. Rxc7 {[%clk 0:01:09]}  Bxh3 {[%clk 0:00:07]} 38. Qc2 {[%clk 0:00:45]}  Bxg2 {[%clk 0:00:06]} 39. Rc8+ {[%clk 0:00:46]}  Rxc8 {[%clk 0:00:03]} 40. Qxc8+ {[%clk 0:00:47]}  Kh7 {[%clk 0:00:04]} 41. Kxg2 {[%clk 0:00:45]}  Qf3+ {[%clk 0:00:03]} 42. Kf1 {[%clk 0:00:45]}  h3 {[%clk 0:00:03]} 43. Ke1 {[%clk 0:00:36]}  h2 {[%clk 0:00:03]} 44. Kd2 {[%clk 0:00:37]}  h1=Q {[%clk 0:00:04]} 45. Kc3 {[%clk 0:00:37]}  Qe1+ {[%clk 0:00:04]} 46. Kb3 {[%clk 0:00:38]}  Qfd1+ {[%clk 0:00:04]} 47. Nc2 {[%clk 0:00:38]}  Qb1+ {[%clk 0:00:04]} 48. Bb2 {[%clk 0:00:38]}  Qed1 {[%clk 0:00:04]} 49. Qc7 {[%clk 0:00:38]}  Kg7 {[%clk 0:00:01]} 50. f4 {[%clk 0:00:34]}  Qd3+ {[%clk 0:00:02]} 51. Ka4 {[%clk 0:00:33]}  Qbxc2+ {[%clk 0:00:03]} 52. Qxc2 {[%clk 0:00:33]}  Qxc2+ {[%clk 0:00:04]} 53. Ka3 {[%clk 0:00:34]}  Nf3 {[%clk 0:00:04]} 54. f5 {[%clk 0:00:34]}  Qc4 {[%clk 0:00:05]} 55. f6+ {[%clk 0:00:34]}  Kxf6 {[%clk 0:00:05]} 56. Bc3 {[%clk 0:00:35]}  Kf5 {[%clk 0:00:06]} 57. Kb2 {[%clk 0:00:35]}  Qxd5 {[%clk 0:00:06]} 58. Bb4 {[%clk 0:00:35]}  Qb5 {[%clk 0:00:07]} 59. Kc3 {[%clk 0:00:35]}  d5 {[%clk 0:00:08]} 60. Bc5 {[%clk 0:00:36]}  Bxe3 {[%clk 0:00:09]} 61. Bb4 {[%clk 0:00:36]}  Bxd4+ {[%clk 0:00:09]} 62. Kc2 {[%clk 0:00:36]}  Qc4+ {[%clk 0:00:09]} 63. Bc3 {[%clk 0:00:36]}  Qxc3+ {[%clk 0:00:10]} 64. Kd1 {[%clk 0:00:37]}  Qd2# {[%clk 0:00:10]} 0-1


[Site "https://www.chess.com"]

[Event "Titled Tuesday Blitz March 14 Late 2023"]
[White "Di Berardino, Diego Rafael"]
[Black "Melikhov, Evgeny V."]
[WhiteFideId "2105446"]
[BlackFideId "4122046"]
[WhiteElo "2432"]
[BlackElo "2158"]
[Result "0-1"]
[Round "03"]
[TimeControl "180+1"]
[Date "2023.03.14"]
[WhiteClock "0:00:03"]
[BlackClock "0:00:24"]

1. e4 {[%clk 0:03:00]}  e5 {[%clk 0:02:59]} 2. Nf3 {[%clk 0:02:59]}  Nc6 {[%clk 0:02:59]} 3. Bc4 {[%clk 0:02:58]}  Nf6 {[%clk 0:02:59]} 4. d3 {[%clk 0:02:57]}  Be7 {[%clk 0:02:58]} 5. O-O {[%clk 0:02:56]}  O-O {[%clk 0:02:57]} 6. Re1 {[%clk 0:02:55]}  d6 {[%clk 0:02:53]} 7. a4 {[%clk 0:02:53]}  a5 {[%clk 0:02:52]} 8. Nc3 {[%clk 0:02:46]}  Be6 {[%clk 0:02:51]} 9. Bxe6 {[%clk 0:02:26]}  fxe6 {[%clk 0:02:50]} 10. d4 {[%clk 0:02:27]}  exd4 {[%clk 0:02:46]} 11. Nxd4 {[%clk 0:02:26]}  Nxd4 {[%clk 0:02:45]} 12. Qxd4 {[%clk 0:02:27]}  Nd7 {[%clk 0:02:21]} 13. Qc4 {[%clk 0:02:06]}  Rf6 {[%clk 0:02:07]} 14. Bg5 {[%clk 0:02:02]}  Rg6 {[%clk 0:02:07]} 15. Bxe7 {[%clk 0:02:00]}  Qxe7 {[%clk 0:02:07]} 16. Qxc7 {[%clk 0:01:50]}  Rf8 {[%clk 0:01:54]} 17. g3 {[%clk 0:01:36]}  Qf6 {[%clk 0:01:47]} 18. Re2 {[%clk 0:01:27]}  Ne5 {[%clk 0:01:44]} 19. Qxd6 {[%clk 0:00:23]}  Nf3+ {[%clk 0:01:43]} 20. Kg2 {[%clk 0:00:10]}  Nxh2 {[%clk 0:01:18]} 21. f4 {[%clk 0:00:05]}  Qh4 {[%clk 0:01:04]} 22. f5 {[%clk 0:00:03]}  Rg4 {[%clk 0:00:51]} 23. Rh1 {[%clk 0:00:03]}  Rd8 {[%clk 0:00:36]} 24. Rxh2 {[%clk 0:00:02]}  Qxh2+ {[%clk 0:00:34]} 25. Kxh2 {[%clk 0:00:02]}  Rxd6 {[%clk 0:00:34]} 26. fxe6 {[%clk 0:00:02]}  Rxe6 {[%clk 0:00:34]} 27. Kg2 {[%clk 0:00:02]}  h5 {[%clk 0:00:32]} 28. Kf3 {[%clk 0:00:03]}  Rf6+ {[%clk 0:00:26]} 29. Kg2 {[%clk 0:00:03]}  h4 {[%clk 0:00:25]} 30. Kh3 {[%clk 0:00:03]}  Rxg3+ {[%clk 0:00:24]} 31. Kxh4 {[%clk 0:00:03]}  Rg1 {[%clk 0:00:24]} 0-1


[Site "https://www.chess.com"]

[Event "Titled Tuesday Blitz March 14 Late 2023"]
[White "Dinu, Dumitru-Daniel"]
[Black "Kurtz, Eric M"]
[WhiteFideId "1208403"]
[BlackFideId "30939763"]
[WhiteElo "2240"]
[BlackElo "2599"]
[Result "1-0"]
[Round "03"]
[TimeControl "180+1"]
[Date "2023.03.14"]
[WhiteClock "0:00:02"]
[BlackClock "0:00:02"]

1. e4 {[%clk 0:03:00]}  d6 {[%clk 0:02:57]} 2. d4 {[%clk 0:03:00]}  Nf6 {[%clk 0:02:57]} 3. Nc3 {[%clk 0:03:01]}  g6 {[%clk 0:02:57]} 4. Bc4 {[%clk 0:03:01]}  Bg7 {[%clk 0:02:57]} 5. Qe2 {[%clk 0:03:02]}  O-O {[%clk 0:02:57]} 6. e5 {[%clk 0:03:02]}  Ng4 {[%clk 0:02:56]} 7. h3 {[%clk 0:02:53]}  Nh6 {[%clk 0:02:55]} 8. Nf3 {[%clk 0:02:50]}  Nc6 {[%clk 0:02:32]} 9. O-O {[%clk 0:02:49]}  Nf5 {[%clk 0:02:32]} 10. Rd1 {[%clk 0:02:43]}  Na5 {[%clk 0:02:04]} 11. Bd3 {[%clk 0:02:35]}  f6 {[%clk 0:01:53]} 12. e6 {[%clk 0:02:18]}  Nh6 {[%clk 0:01:44]} 13. d5 {[%clk 0:02:15]}  c5 {[%clk 0:01:37]} 14. Bf4 {[%clk 0:01:55]}  Kh8 {[%clk 0:01:35]} 15. Qd2 {[%clk 0:01:23]}  Ng8 {[%clk 0:01:33]} 16. Nh4 {[%clk 0:01:11]}  g5 {[%clk 0:01:26]} 17. Nf5 {[%clk 0:01:08]}  c4 {[%clk 0:01:10]} 18. Be4 {[%clk 0:00:59]}  Qe8 {[%clk 0:01:00]} 19. Be3 {[%clk 0:00:37]}  b6 {[%clk 0:00:52]} 20. h4 {[%clk 0:00:30]}  gxh4 {[%clk 0:00:49]} 21. Bd4 {[%clk 0:00:17]}  Qh5 {[%clk 0:00:47]} 22. Qf4 {[%clk 0:00:12]}  Nh6 {[%clk 0:00:40]} 23. Nxg7 {[%clk 0:00:07]}  Kxg7 {[%clk 0:00:39]} 24. Bf3 {[%clk 0:00:07]}  Qg6 {[%clk 0:00:37]} 25. Ne4 {[%clk 0:00:05]}  Nf5 {[%clk 0:00:29]} 26. Bc3 {[%clk 0:00:03]}  Nb7 {[%clk 0:00:19]} 27. Bg4 {[%clk 0:00:04]}  Nh6 {[%clk 0:00:19]} 28. Bh3 {[%clk 0:00:04]}  Nc5 {[%clk 0:00:16]} 29. Nxc5 {[%clk 0:00:04]}  bxc5 {[%clk 0:00:17]} 30. Qxc4 {[%clk 0:00:04]}  a5 {[%clk 0:00:16]} 31. Qxh4 {[%clk 0:00:04]}  Rb8 {[%clk 0:00:16]} 32. Rd3 {[%clk 0:00:04]}  Nf5 {[%clk 0:00:11]} 33. Qf4 {[%clk 0:00:03]}  Qh6 {[%clk 0:00:02]} 34. Qxf5 {[%clk 0:00:02]} 1-0


[Site "https://www.chess.com"]